bitfinex/quotes_ETHUSD_20260214
["timestamp","ask_amount","ask_price","bid_price","bid_amount"]
[1771098300561,0.49087086,2088.2,2087.7,0.001]
[1771098300760,1.68810956,2088.2,2087.7,0.001]
[1771098300959,0.0033,2088.1,2087.7,0.001]
[1771098301269,0.49417086,2088.1,2087.7,0.001]
[1771098302054,0.49417086,2088.0,2087.7,0.001]
[1771098302249,0.0033,2088.0,2087.7,0.001]
[1771098304673,1.298,2088.3,2087.7,0.001]
[1771098304674,1.298,2088.3,2087.7,0.49147086]
[1771098305050,0.0033,2088.1,2087.8,0.49047086]
[1771098305747,0.49417086,2088.1,2087.7,0.001]
[1771098306582,0.49087086,2088.1,2087.7,0.001]
[1771098308587,1.68813165,2088.1,2087.7,0.001]
[1771098308986,0.49087086,2088.1,2087.7,0.001]
[1771098311079,0.0033,2088.0,2087.7,0.001]
[1771098312188,0.49417086,2088.0,2087.7,0.001]
[1771098313072,0.49417086,2088.0,2087.5,0.001]
[1771098313265,0.49463083,2087.8,2087.4,0.001]
[1771098313661,0.0033,2087.7,2087.4,0.001]
[1771098317399,0.49463083,2087.8,2087.4,0.001]
[1771098317576,0.0033,2087.7,2087.4,0.001]
[1771098318892,0.0033,2087.6,2087.4,0.001]
[1771098319091,1.80363083,2087.9,2087.4,0.001]
[1771098319275,0.0033,2087.8,2087.4,0.47161108]
[1771098321002,0.0033,2087.8,2087.5,1.66821587]
[1771098323667,2.50724833,2088.2,2087.6,0.47061108]
[1771098323874,0.0033,2088.0,2087.6,0.47061108]
[1771098325374,1.80463083,2088.2,2087.6,0.47061108]
[1771098325572,0.0033,2088.1,2087.6,0.47061108]
[1771098325791,0.49793083,2088.3,2087.6,1.66810309]
[1771098326713,0.49793083,2088.3,2087.6,3.85410309]
[1771098326878,0.0033,2088.2,2087.7,0.47061108]
[1771098327400,0.0011,2088.4,2087.7,0.47061108]
[1771098327703,0.0033,2088.3,2087.7,0.47061108]
[1771098327877,0.0033,2088.3,2087.9,0.47061108]
[1771098330607,0.0033,2088.3,2088.0,1.66792908]
[1771098331216,0.0011,2088.6,2088.2,0.47061108]
[1771098331381,0.0044,2088.6,2088.3,0.47061108]
[1771098331731,0.0044,2088.6,2088.1,2.65861108]
[1771098331906,0.0033,2088.5,2088.1,2.188]
[1771098332285,0.0033,2088.5,2088.1,2.65861108]
[1771098332684,0.0033,2088.5,2088.2,1.19720333]
[1771098334485,0.0033,2088.5,2088.1,3.38525447]
[1771098334486,0.49793083,2088.5,2088.1,3.38525447]
[1771098336491,0.0011,2088.6,2088.1,3.85586555]
[1771098336704,0.0033,2088.4,2088.1,3.85586555]
[1771098337384,0.0011,2088.6,2088.2,0.47061108]
[1771098337594,0.0033,2088.5,2088.2,0.47061108]
[1771098337807,0.0011,2088.6,2088.2,0.47061108]
[1771098338015,0.0033,2088.5,2088.2,0.47061108]
[1771098338850,0.0011,2088.6,2088.3,0.47061108]
[1771098339004,0.0011,2088.7,2088.5,0.47061108]
[1771098340000,0.0011,2088.8,2088.6,0.47061108]
[1771098341115,0.0011,2088.8,2088.7,1.19691674]
[1771098341518,0.0011,2088.8,2088.6,0.47061108]
[1771098341730,0.0011,2088.8,2088.5,2.195]
[1771098342902,0.0011,2088.8,2088.5,3.39202574]
[1771098343103,0.0011,2088.8,2088.5,3.8796728]
[1771098345037,0.0011,2088.9,2088.5,3.8796728]
[1771098346839,0.0011,2088.9,2088.5,3.39202574]
[1771098347146,0.0011,2088.9,2088.6,0.48764706]
[1771098347443,0.0011,2088.9,2088.5,2.195]
[1771098348339,0.45454417,2088.9,2088.5,2.2]
[1771098350737,1.65135959,2088.9,2088.5,2.2]
[1771098351139,0.45344417,2088.8,2088.5,2.2]
[1771098351834,1.65036091,2088.7,2088.1,2.904]
[1771098352039,0.45344417,2088.6,2088.1,2.904]
[1771098355439,1.65045636,2088.6,2088.1,2.904]
[1771098355736,0.45344417,2088.5,2087.9,2.2]
[1771098359652,1.65049745,2088.5,2087.9,2.2]
[1771098359951,0.45344417,2088.4,2087.9,2.2]
[1771098361360,0.45344417,2088.6,2088.0,0.48764706]
[1771098361734,0.45344417,2088.6,2088.0,1.6849363]
[1771098361956,0.45344417,2088.6,2088.1,0.01011577]
[1771098362960,1.19689009,2088.8,2088.0,1.6849363]
[1771098363168,1.65033426,2088.8,2088.1,0.48764706]
[1771098363962,1.65033426,2088.8,2088.1,1.68486413]
[1771098364162,1.65033426,2088.8,2088.1,0.48764706]
[1771098364369,0.45344417,2088.7,2088.1,0.48764706]
[1771098366566,1.6504025,2088.7,2088.1,0.48764706]
[1771098367861,1.19695833,2088.7,2087.9,2.68764706]
[1771098368068,0.45344417,2088.6,2087.9,2.68764706]
[1771098368586,0.45344417,2088.6,2087.9,2.2]
[1771098368740,0.45344417,2088.4,2087.9,2.2]
[1771098369371,0.45344417,2088.5,2087.9,2.2]
[1771098371559,0.45344417,2088.4,2087.9,2.2]
[1771098372780,0.45344417,2088.4,2087.9,0.001]
[1771098373875,0.47440818,2088.2,2087.9,0.001]
[1771098376363,1.19706698,2088.5,2087.9,0.001]
[1771098376563,1.67147516,2088.5,2087.9,0.001]
[1771098378888,0.47440818,2088.4,2087.9,0.001]
[1771098385184,1.67149799,2088.4,2087.9,0.001]
[1771098386486,0.47440818,2088.4,2087.9,0.001]
[1771098386964,1.67149779,2088.4,2087.9,0.001]
[1771098387166,0.47440818,2088.0,2087.7,0.001]
[1771098387366,0.47440818,2088.0,2087.4,0.001]
[1771098387590,4.78881333,2088.3,2087.4,0.001]
[1771098387591,1.19716285,2088.3,2087.5,0.46420771]
[1771098387766,0.47440818,2088.3,2087.5,0.46420771]
[1771098387960,1.67147074,2088.5,2087.6,0.46420771]
[1771098388369,1.19706256,2088.5,2087.6,0.46420771]
[1771098388679,0.47440818,2088.4,2087.6,0.46420771]
[1771098389193,0.47440818,2088.1,2087.4,3.38465109]
[1771098390466,0.47440818,2088.1,2087.4,3.8488588]
[1771098390694,1.19707615,2088.5,2087.5,0.46420771]
[1771098390998,1.67148433,2088.5,2087.6,0.46420771]
[1771098391291,0.47440818,2088.4,2087.7,1.66169777]
[1771098394684,0.47440818,2088.4,2087.8,0.46420771]
[1771098394884,6.09276062,2088.7,2087.8,0.46420771]
[1771098394885,2.5019584,2088.7,2087.8,0.46420771]
[1771098395190,0.47440818,2088.6,2087.8,0.46420771]
[1771098396574,0.47440818,2088.5,2087.9,1.19737535]
[1771098397296,0.47440818,2088.5,2088.0,0.02274963]
[1771098399214,0.47440818,2088.5,2087.9,1.19737535]
[1771098399395,0.47440818,2088.4,2087.7,1.19746626]
[1771098400305,0.47440818,2088.4,2087.6,0.001]
[1771098400505,0.47440818,2088.4,2087.7,2.183]
[1771098401319,0.45832851,2088.2,2087.7,3.38048171]
[1771098401612,0.45832851,2088.2,2087.7,2.183]
[1771098403919,1.65553946,2088.2,2087.7,2.183]
[1771098405197,1.19721095,2088.2,2087.7,2.183]
[1771098405393,1.67670853,2088.3,2087.7,2.183]
[1771098406338,0.47951942,2088.2,2087.7,2.183]
[1771098407003,0.47951942,2088.2,2087.6,1.19853786]
[1771098407199,0.47951942,2088.2,2087.6,3.37953786]
[1771098410339,0.47951942,2088.1,2087.6,3.37953786]
[1771098413817,1.19721182,2088.2,2087.6,3.37953786]
[1771098414020,0.47951942,2088.5,2087.8,0.49679556]
[1771098414225,0.47951942,2088.5,2087.6,3.37953786]
[1771098414529,0.48061942,2088.5,2087.6,3.37953786]
[1771098415313,0.47951942,2088.3,2087.7,0.49679556]
[1771098415514,0.48061942,2088.5,2087.7,0.49679556]
[1771098415740,0.48061942,2088.5,2087.7,6.42790908]
[1771098415944,0.0011,2088.5,2087.8,0.49679556]
[1771098417015,0.0011,2088.5,2088.0,0.49679556]
[1771098417246,0.0011,2088.5,2088.1,1.19726066]
[1771098417434,0.0011,2088.5,2088.1,3.87505622]
[1771098419044,0.0011,2088.5,2088.1,3.37826066]
[1771098420516,0.48061942,2088.5,2088.1,2.181]
[1771098421160,0.48061942,2088.5,2087.7,3.26445661]
[1771098421550,0.47951942,2088.3,2087.7,2.067]
[1771098421753,0.47951942,2088.3,2087.6,2.185]
[1771098422057,0.47951942,2088.2,2087.6,2.185]
[1771098422845,0.47951942,2088.2,2087.6,0.001]
[1771098423242,1.303,2088.2,2087.6,0.001]
[1771098423438,0.47951942,2088.1,2087.6,0.001]
[1771098423851,1.67667528,2088.3,2087.6,0.49779556]
[1771098424053,0.47951942,2088.2,2087.6,0.001]
[1771098424432,0.47951942,2088.1,2087.6,0.001]
[1771098426268,0.47951942,2087.9,2087.6,0.001]
[1771098428542,0.47951942,2087.7,2087.6,0.001]
[1771098430053,0.47951942,2087.9,2087.6,0.001]
[1771098430738,0.47951942,2088.1,2087.6,0.001]
[1771098431071,0.47951942,2088.3,2087.6,0.49779556]
[1771098435783,0.47951942,2088.3,2087.7,1.19749006]
[1771098438565,0.45061454,2088.2,2087.6,1.19850149]
[1771098439268,0.45061454,2088.2,2087.6,1.6733214]
[1771098451283,1.64774679,2088.4,2087.7,0.47481991]
[1771098451803,0.45061454,2088.3,2087.7,0.47481991]
[1771098452798,0.45061454,2088.3,2087.6,1.19850149]
[1771098453204,0.45061454,2088.2,2087.6,1.19850149]
[1771098453620,0.45061454,2088.2,2087.6,2.177]
[1771098454119,0.45061454,2088.2,2087.6,0.001]
[1771098454449,0.45061454,2088.4,2087.6,0.47581991]
[1771098454573,0.45061454,2088.3,2087.6,0.47581991]
[1771098454774,2.95878454,2088.5,2087.6,0.47581991]
[1771098454992,0.45061454,2088.4,2087.6,6.42964052]
[1771098455183,0.45061454,2088.4,2087.6,6.90446043]
[1771098455384,0.45061454,2088.3,2087.7,1.19749006]
[1771098461720,0.45061454,2088.3,2087.7,1.65761026]
[1771098464433,0.4593157,2088.2,2087.7,1.19749006]
[1771098465317,1.19816452,2088.5,2087.8,0.48424568]
[1771098465503,0.4593157,2088.4,2087.8,0.48424568]
[1771098465718,0.4593157,2088.4,2087.7,1.19749006]
[1771098468549,1.19709951,2088.4,2087.7,1.19749006]
[1771098468734,0.4593157,2088.3,2087.7,1.19749006]
[1771098472841,0.0011,2088.5,2087.8,0.48424568]
[1771098473340,0.4604157,2088.5,2087.9,1.19737535]
[1771098473838,0.4604157,2088.5,2087.9,1.68162103]
[1771098476112,0.0011,2088.8,2088.3,0.48424568]
[1771098476317,0.0011,2088.8,2088.4,6.9128862]
[1771098477007,0.0011,2088.8,2088.4,0.48424568]
[1771098478021,0.0011,2088.8,2088.4,1.681303]
[1771098479338,0.0011,2088.8,2088.3,3.37410117]
[1771098479538,0.0011,2088.8,2088.4,0.48424568]
[1771098480128,0.0011,2088.8,2088.5,1.19703136]
[1771098481720,0.41710805,2089.0,2088.6,0.48424568]
[1771098481915,0.0011,2089.1,2088.6,0.48424568]
[1771098482111,0.0011,2089.1,2088.7,1.19691674]
[1771098482542,0.0011,2089.1,2088.7,1.68116242]
[1771098482738,0.0011,2089.1,2088.8,2.182]
[1771098483744,0.0011,2089.2,2088.8,2.66624568]
[1771098483948,0.0011,2089.2,2088.9,0.48424568]
[1771098484647,0.0011,2089.2,2088.8,3.37883988]
[1771098484948,0.0011,2089.2,2088.8,2.184]
[1771098484949,0.4604157,2089.2,2088.8,2.184]
[1771098485626,0.0011,2089.2,2088.8,2.184]
[1771098485811,0.0011,2089.2,2088.8,2.66824568]
[1771098486630,0.0011,2089.2,2088.8,3.86510224]
[1771098486952,0.4604157,2089.2,2088.8,2.184]
[1771098487455,0.0011,2089.2,2088.8,2.184]
[1771098487833,0.0011,2089.2,2088.8,3.86510305]
[1771098488347,0.0011,2089.2,2088.9,0.48424568]
[1771098489363,0.0011,2089.2,2088.9,1.68101836]
[1771098490851,0.0011,2089.2,2088.9,1.19677268]
[1771098491030,0.0011,2089.2,2088.8,3.38081701]
[1771098491454,0.0011,2089.2,2088.8,2.184]
[1771098492422,0.0011,2089.2,2088.8,3.38085674]
[1771098492627,0.0011,2089.2,2088.8,3.86510242]
[1771098492948,0.0011,2089.2,2088.8,3.38085674]
[1771098493652,0.0011,2089.2,2088.8,3.87085652]
[1771098497959,0.0011,2089.2,2088.8,3.38085674]
[1771098501236,0.0011,2089.2,2088.8,3.87085652]
[1771098501932,0.0011,2089.2,2088.8,3.38085674]
[1771098506660,0.0011,2089.2,2088.9,0.48999978]
[1771098506869,1.65267111,2090.0,2089.1,6.9186403]
[1771098507075,1.65267111,2090.0,2089.2,2.207]
[1771098507076,0.4564758,2089.9,2089.2,2.207]
[1771098507772,0.4564758,2089.9,2089.3,2.207]
[1771098508854,0.4564758,2089.8,2089.3,3.40356442]
[1771098511073,0.4564758,2089.8,2089.1,1.19664782]
[1771098511074,0.4564758,2089.7,2089.1,1.19664782]
[1771098511390,0.4564758,2089.7,2088.8,4.78736509]
[1771098511565,0.4564758,2089.7,2089.1,2.206]
[1771098513303,0.4564758,2089.6,2089.1,2.206]
[1771098515283,1.19645848,2089.5,2089.1,2.206]
[1771098515576,1.19645848,2089.5,2088.6,0.48999978]
[1771098515577,0.4564758,2089.4,2088.6,5.27783631]
[1771098515751,0.4564758,2089.4,2088.7,3.40087591]
[1771098516482,0.4564758,2089.4,2088.7,2.204]
[1771098516676,0.4564758,2089.2,2088.7,2.204]
[1771098517376,0.4564758,2089.0,2088.7,2.204]
[1771098521263,0.4564758,2089.2,2088.7,2.204]
[1771098522990,0.4564758,2089.2,2088.7,3.40090477]
[1771098524291,0.4564758,2089.2,2088.7,2.204]
[1771098526763,0.47183578,2089.1,2088.5,1.19800575]
[1771098526973,0.47183578,2089.1,2088.5,3.40200575]
[1771098527274,0.47183578,2089.1,2088.5,3.89427454]
[1771098528587,0.47183578,2089.1,2088.5,3.40200575]
[1771098528793,0.47183578,2089.0,2088.5,3.40202633]
[1771098530270,0.47183578,2089.2,2088.5,3.89429512]
[1771098532802,0.47183578,2089.2,2088.6,0.49226879]
[1771098532972,0.47183578,2089.4,2088.6,0.49226879]
[1771098533482,1.19756372,2089.5,2088.8,0.49226879]
[1771098533483,0.47293578,2089.5,2088.8,0.49226879]
[1771098533991,0.0011,2089.5,2089.0,0.49226879]
[1771098534192,0.0011,2089.5,2089.1,2.206]
[1771098535297,0.0011,2089.5,2089.1,2.69826879]
[1771098535601,0.0011,2089.7,2089.3,1.6888418]
[1771098537399,0.47293578,2089.7,2089.1,4.26467558]
[1771098538288,0.47293578,2089.7,2089.2,2.21]
[1771098538683,0.47293578,2089.7,2089.1,1.19667558]
[1771098538684,0.47183578,2089.6,2088.9,1.19676278]
[1771098539002,1.19745213,2089.7,2089.1,2.21]
[1771098539003,0.0011,2089.7,2089.1,2.21]
[1771098539205,0.0011,2089.7,2089.1,2.70226879]
[1771098540202,0.47183578,2089.6,2089.2,1.19663028]
[1771098540905,0.47183578,2089.6,2089.2,2.209]
[1771098541106,0.0011,2089.7,2089.2,9.12024409]
[1771098541602,0.0011,2089.7,2089.3,0.49226879]
[1771098542216,0.0011,2090.1,2089.4,0.49226879]
[1771098542402,0.38970773,2091.0,2090.4,0.49226879]
[1771098542605,0.38970773,2091.0,2090.5,2.214]
[1771098543098,0.88047092,2091.1,2090.6,0.44495192]
[1771098543298,0.88047092,2091.1,2090.5,2.214]
[1771098543299,0.88047092,2091.1,2090.7,0.44495192]
[1771098543504,0.88047092,2091.1,2090.8,0.44495192]
[1771098543711,0.88047092,2091.1,2090.9,0.44495192]
[1771098543881,0.88047092,2091.1,2091.0,0.44495192]
[1771098544081,0.88047092,2091.1,2090.5,2.214]
[1771098544324,0.88047092,2091.1,2090.6,1.19582894]
[1771098544680,0.88047092,2091.1,2090.5,6.99734377]
[1771098544681,2.54785429,2091.1,2090.5,3.40986766]
[1771098544889,0.47183578,2091.0,2090.5,3.40986766]
[1771098545892,0.47183578,2091.0,2090.3,1.19596517]
[1771098546086,0.47183578,2091.0,2090.5,2.215]
[1771098546291,0.47183578,2091.0,2090.6,1.19582894]
[1771098546696,0.88047092,2091.1,2090.5,3.41085059]
[1771098547183,1.3523067,2091.1,2090.5,2.215]
[1771098547388,0.47183578,2091.0,2090.5,2.215]
[1771098548508,0.47183578,2091.0,2090.5,3.4108788]
[1771098549815,0.47183578,2090.9,2090.5,2.215]
[1771098550916,0.47183578,2090.8,2090.1,3.4090772]
[1771098551118,0.88047092,2091.1,2090.3,0.49226879]
[1771098551317,0.47183578,2091.0,2090.3,0.49226879]
[1771098552818,0.47183578,2091.0,2090.4,1.19594336]
[1771098553707,0.88047092,2091.1,2090.4,1.19594336]
[1771098554223,0.45745434,2091.0,2090.4,1.19594336]
[1771098554821,0.45745434,2091.0,2090.2,5.27780728]
[1771098555132,0.88047092,2091.1,2090.3,0.49375245]
[1771098555292,0.88047092,2091.1,2090.2,4.78405483]
[1771098555293,0.88047092,2091.1,2090.5,0.49375245]
[1771098555489,0.88047092,2091.1,2090.6,2.214]
[1771098556333,1.33792526,2091.1,2090.6,2.214]
[1771098556535,0.45745434,2091.0,2090.6,2.214]
[1771098557150,0.45745434,2091.0,2090.7,1.19577175]
[1771098557326,0.45745434,2091.0,2090.6,2.214]
[1771098557513,0.45745434,2091.0,2090.4,1.19590241]
[1771098558640,0.45745434,2091.0,2090.2,3.40801466]
[1771098559109,0.45745434,2090.9,2090.2,3.40801466]
[1771098559439,1.33792526,2091.1,2090.2,3.40801466]
[1771098559804,1.33792526,2091.1,2090.3,0.49375245]
[1771098561142,0.45745434,2091.3,2090.5,0.49375245]
[1771098561355,0.45745434,2091.3,2090.4,1.19594336]
[1771098563206,0.45745434,2091.2,2090.3,4.78377344]
[1771098564738,0.45745434,2091.2,2090.3,5.27752589]
[1771098565436,0.0011,2091.4,2090.5,0.49375245]
[1771098566213,0.0011,2091.4,2090.7,0.49375245]
[1771098566533,0.0011,2091.4,2090.9,30.0]
[1771098566732,0.0011,2091.4,2090.9,0.49375245]
[1771098567329,0.0011,2091.4,2091.0,1.19560019]
[1771098570413,0.45855434,2091.4,2091.0,1.19560019]
[1771098570747,0.45855434,2091.4,2090.9,1.19562367]
[1771098570947,0.45855434,2091.4,2090.8,2.208]
[1771098571154,0.45855434,2091.4,2090.1,4.78440812]
[1771098571318,0.45745434,2091.3,2090.3,1.68975302]
[1771098571742,0.45745434,2091.3,2090.5,30.0]
[1771098571941,0.0011,2091.4,2090.5,0.49375245]
[1771098572521,0.45855434,2091.4,2090.6,0.49375245]
[1771098572712,0.45855434,2091.4,2090.7,2.21]
[1771098573325,0.45855434,2091.4,2090.8,1.19571455]
[1771098573532,0.45745434,2091.3,2090.8,1.19571455]
[1771098575029,0.45745434,2091.3,2090.7,6.99286708]
[1771098575030,0.45745434,2091.3,2090.7,3.40573402]
[1771098575550,0.45745434,2091.2,2090.0,4.78446218]
[1771098575731,0.45745434,2091.2,2090.3,2.208]
[1771098577234,0.45745434,2091.2,2090.4,30.0]
[1771098577825,0.45745434,2091.2,2090.5,1.19588615]
[1771098578748,0.45855434,2091.4,2090.6,30.0]
[1771098579149,0.45745434,2091.3,2090.5,1.19588615]
[1771098579752,0.45745434,2091.3,2090.4,4.7835446]
[1771098580266,0.45745434,2091.2,2090.4,4.7835446]
[1771098584264,0.0011,2091.6,2090.8,0.48247646]
[1771098584457,0.0011,2091.6,2090.9,2.208]
[1771098584635,0.46634691,2091.6,2090.9,2.208]
[1771098584835,0.46634691,2091.6,2091.0,1.19560019]
[1771098585436,0.0011,2091.6,2091.0,1.19560019]
[1771098586039,0.46634691,2091.6,2091.0,1.19560019]
[1771098589445,0.0011,2091.7,2091.0,1.19560019]
[1771098589644,0.0011,2091.7,2091.0,1.67807665]
[1771098590768,0.0011,2091.7,2091.1,0.48247646]
[1771098590946,0.0011,2091.7,2091.0,1.19560019]
[1771098591140,0.46634691,2091.7,2091.0,1.19560019]
[1771098591976,0.46634691,2091.7,2090.9,6.99040076]
[1771098591977,0.46634691,2091.7,2090.9,3.40361555]
[1771098592175,0.46634691,2091.7,2090.9,3.40364474]
[1771098593506,0.46524691,2091.6,2090.9,3.40364474]
[1771098596091,0.46524691,2091.4,2090.9,3.40364474]
[1771098596390,0.46524691,2091.4,2090.7,1.19574862]
[1771098598984,0.46524691,2091.3,2090.7,1.19574862]
[1771098600288,0.46524691,2091.3,2090.6,4.78427288]
[1771098601079,0.46524691,2091.6,2090.8,6.40884151]
[1771098601393,0.46524691,2091.6,2090.6,11.67559085]
[1771098601791,0.46524691,2091.6,2090.6,11.19311439]
[1771098601981,0.46524691,2091.6,2090.6,4.78427288]
[1771098603869,0.46524691,2091.4,2090.6,4.78427288]
[1771098604810,0.46524691,2091.4,2090.7,0.04783087]
[1771098605499,0.46524691,2091.4,2090.6,0.001]
[1771098605882,0.46524691,2091.2,2090.6,0.001]
[1771098607209,0.46524691,2091.3,2090.6,0.001]
[1771098608408,1.19548584,2091.2,2090.6,0.001]
[1771098608573,0.46524691,2091.1,2090.6,0.001]
[1771098610905,0.46524691,2091.0,2090.6,0.001]
[1771098613622,0.49411272,2090.9,2090.6,0.001]
[1771098615821,1.68982727,2090.8,2090.6,0.001]
[1771098616026,0.49411272,2090.8,2090.6,0.001]
[1771098616515,0.49411272,2091.2,2090.6,0.001]
[1771098618695,1.19554301,2091.1,2090.6,0.001]
[1771098618889,0.49411272,2091.0,2090.6,0.001]
[1771098619098,0.49411272,2090.9,2090.3,0.001]
[1771098621420,0.49411272,2090.7,2090.3,0.001]
[1771098623228,0.49411272,2090.8,2090.3,0.001]
[1771098623529,1.68988447,2090.7,2090.3,0.001]
[1771098623829,0.49411272,2090.7,2090.3,0.001]
[1771098624429,1.19575573,2090.8,2090.3,0.001]
[1771098628832,0.49411272,2090.8,2090.3,0.001]
[1771098629732,4.78254142,2091.0,2090.3,0.47766083]
[1771098630029,1.276,2090.9,2090.3,0.47766083]
[1771098630525,0.49411272,2090.8,2090.1,1.67377584]
[1771098632019,1.68988447,2090.7,2090.1,1.67377584]
[1771098632413,1.68988447,2090.7,2090.1,1.19711501]
[1771098632617,2.9658054,2090.9,2090.2,0.47666083]
[1771098633137,0.49411272,2090.8,2090.1,1.19711501]
[1771098633523,6.90799834,2090.8,2090.1,0.001]
[1771098633838,0.49411272,2090.7,2090.1,0.001]
[1771098634318,1.68994166,2090.6,2090.1,0.001]
[1771098636034,1.68987673,2090.8,2090.1,0.001]
[1771098636237,1.68987673,2090.8,2090.1,0.47766083]
[1771098636634,1.68987673,2090.8,2090.2,1.19605779]
[1771098636832,0.49411272,2090.8,2090.2,1.67271862]
[1771098637042,2.96579221,2090.9,2090.2,1.67271862]
[1771098638541,2.96579221,2090.9,2090.2,0.47666083]
[1771098638942,2.96579221,2090.9,2090.3,1.19600057]
[1771098639143,2.47167949,2090.9,2090.3,1.6726614]
[1771098639439,2.47167949,2090.9,2090.3,0.47666083]
[1771098639939,2.47166041,2090.9,2090.3,0.47666083]
[1771098640239,1.276,2090.9,2090.3,0.47666083]
[1771098641219,2.05763885,2091.2,2090.5,0.4514746]
[1771098641540,3.33863885,2091.2,2090.5,0.4514746]
[1771098641723,2.1431,2091.2,2090.5,0.4514746]
[1771098642137,3.33860845,2091.2,2090.5,0.4514746]
[1771098644142,3.80492291,2091.2,2090.5,0.4514746]
[1771098644336,0.46631446,2091.1,2090.3,1.6614307]
[1771098644527,0.46631446,2091.1,2090.3,3.8854307]
[1771098645342,0.46631446,2091.1,2090.3,0.46548174]
[1771098645556,0.46631446,2091.1,2090.2,1.19605779]
[1771098646014,0.46631446,2091.1,2090.2,1.66153953]
[1771098646839,1.66191465,2091.0,2090.2,1.66153953]
[1771098647344,1.19558677,2091.1,2090.3,0.46548174]
[1771098647515,2.47758677,2091.1,2090.3,0.46548174]
[1771098648344,1.19662847,2091.2,2090.3,0.46548174]
[1771098649352,0.0011,2091.2,2090.5,0.46548174]
[1771098649839,0.46741446,2091.2,2090.4,1.19594336]
[1771098650031,0.46741446,2091.2,2090.3,1.66144447]
[1771098651051,0.46631446,2091.0,2090.2,1.19601447]
[1771098651519,1.19565737,2090.9,2090.2,1.66149621]
[1771098652855,1.19565737,2090.9,2090.2,0.46548174]
[1771098653520,4.78222116,2091.1,2090.4,0.46548174]
[1771098653725,1.74831446,2091.0,2090.3,1.19600057]
[1771098654055,1.74831446,2091.0,2090.3,1.66148231]
[1771098656958,2.47858616,2091.1,2090.4,0.46548174]
[1771098658961,2.47858616,2091.1,2090.5,1.19588615]
[1771098659159,2.47858616,2091.1,2090.5,1.66136789]
[1771098661460,0.46631446,2091.0,2090.2,1.66153693]
[1771098661661,0.46631446,2091.0,2090.2,2.69848174]
[1771098663067,1.19563493,2091.0,2090.3,0.46548174]
[1771098664830,1.66194939,2091.0,2090.3,0.46548174]
[1771098665265,0.46631446,2090.9,2090.2,2.233]
[1771098665562,0.46631446,2090.9,2090.2,3.42905368]
[1771098665969,0.46631446,2090.9,2090.2,2.233]
[1771098666144,0.46631446,2090.8,2090.2,2.233]
[1771098667466,1.19577175,2090.7,2090.2,2.233]
[1771098667844,1.19565737,2090.9,2090.3,0.46548174]
[1771098669467,1.19565737,2090.9,2090.3,1.66147112]
[1771098669979,1.19565737,2090.9,2090.3,1.19598938]
[1771098670183,1.19565737,2090.9,2090.4,0.46548174]
[1771098670391,1.19554301,2091.1,2090.4,0.46548174]
[1771098670553,2.48254301,2091.1,2090.4,0.46548174]
[1771098673881,2.94120011,2091.1,2090.4,1.66142077]
[1771098677087,0.4586571,2091.0,2090.4,0.46548174]
[1771098677985,2.48254301,2091.1,2090.4,1.66140709]
[1771098678788,2.48254301,2091.1,2090.5,0.45491097]
[1771098683673,2.48254301,2091.1,2090.5,1.65075413]
[1771098684477,2.48254301,2091.1,2090.5,0.45491097]
[1771098684897,2.94120011,2091.1,2090.5,0.45491097]
[1771098685901,0.4586571,2091.0,2090.3,5.2388104]
[1771098686405,0.4586571,2091.0,2090.4,0.45491097]
[1771098688925,1.19565737,2090.9,2090.4,1.65084259]
[1771098689215,2.48254957,2091.1,2090.5,0.45491097]
[1771098689782,1.287,2091.1,2090.5,0.45491097]
[1771098689979,0.0011,2091.2,2090.6,0.45491097]
[1771098690177,1.19659722,2091.2,2090.6,0.45491097]
[1771098690406,0.0011,2091.2,2090.6,0.45491097]
[1771098691407,0.0011,2091.2,2090.8,0.45491097]
[1771098693750,0.0011,2091.2,2090.9,1.19565737]
[1771098694030,0.0011,2091.2,2090.8,0.45491097]
[1771098694438,0.0011,2091.2,2090.8,1.65058737]
[1771098698218,0.0011,2091.2,2090.8,0.45491097]
[1771098698552,0.0011,2091.2,2090.8,1.65062312]
[1771098699411,0.0011,2091.2,2090.8,1.19571215]
[1771098699622,0.0011,2091.2,2090.9,0.45491097]
[1771098700720,0.0011,2091.2,2091.0,1.65051116]
[1771098704635,0.0011,2091.2,2091.1,0.45236134]
[1771098708754,0.0011,2091.2,2091.1,1.64790435]
[1771098710051,0.0011,2091.2,2091.0,1.19556134]
[1771098710451,0.0011,2091.4,2091.0,1.64792268]
[1771098710648,0.0011,2091.4,2091.1,1.64786346]
[1771098712728,1.66653803,2091.4,2090.7,1.19573164]
[1771098712929,0.47006651,2091.3,2090.7,3.45473164]
[1771098713330,0.47006651,2091.3,2090.7,3.45476507]
[1771098714466,0.47006651,2091.3,2090.7,2.259]
[1771098714628,1.19548584,2091.2,2090.5,1.19585218]
[1771098714833,0.47006651,2091.1,2090.5,1.19585218]
[1771098716243,1.1954621,2091.3,2090.5,1.19585218]
[1771098716443,1.1954621,2091.3,2090.6,0.45236134]
[1771098716831,1.66656638,2091.4,2090.7,1.64813309]
[1771098717037,1.19649987,2091.4,2090.8,0.45236134]
[1771098717442,1.66656638,2091.4,2090.8,0.45236134]
[1771098717649,1.66656638,2091.4,2090.7,1.64813309]
[1771098719847,1.19649987,2091.4,2090.7,1.64813309]
[1771098720032,0.47006651,2091.3,2090.7,1.64813309]
[1771098720359,0.47006651,2091.3,2090.7,1.19577175]
[1771098720659,0.47006651,2091.3,2090.5,1.1958859]
[1771098721362,0.47006651,2091.1,2090.4,1.64826401]
[1771098722343,0.47006651,2091.1,2090.5,0.45236134]
[1771098722547,0.47006651,2091.2,2090.5,0.45236134]
[1771098723338,1.66558916,2091.2,2090.6,1.19582894]
[1771098723683,1.66558916,2091.2,2090.5,1.64822045]
[1771098726879,1.19651464,2091.4,2090.6,0.45236134]
[1771098727764,1.19651464,2091.4,2090.8,0.45236134]
[1771098727974,1.66658115,2091.4,2090.8,0.45236134]
[1771098728971,0.47006651,2091.3,2090.5,0.45236134]
[1771098729558,6.88066352,2091.3,2090.4,1.6483047]
[1771098729784,1.19554301,2091.1,2090.4,1.6483047]
[1771098730073,0.47006651,2091.0,2090.4,1.6483047]
[1771098730268,0.47006651,2091.0,2090.3,2.256]
[1771098732474,1.66572388,2090.9,2090.3,2.256]
[1771098732871,0.47006651,2090.8,2090.2,0.001]
[1771098735075,0.49594133,2090.6,2090.2,0.001]
[1771098736247,1.78994133,2090.6,2090.2,0.001]
[1771098736876,0.49594133,2090.5,2090.2,0.001]